fUSD/lending_fUSD_20240125
["ID","MTS","AMOUNT","RATE_DAILY","PERIOD"]
[312675019,1706142701220,-1179.82,0.00052054,31]
[312675020,1706142701230,-3431.79,0.00052054,15]
[312675021,1706142701239,-500.0,0.00052054,31]
[312675022,1706142701248,-568.5,0.00052054,31]
[312675023,1706142701258,-500.0,0.00052054,31]
[312675024,1706142701267,-500.0,0.00052054,31]
[312675025,1706142701276,-1640.43,0.00052054,31]
[312675026,1706142701285,-500.0,0.00052054,31]
[312675027,1706142701295,-500.0,0.00052054,31]
[312675028,1706142701304,-500.0,0.00052054,31]
[312675029,1706142701313,-599.18,0.00052054,31]
[312675030,1706142701322,-500.0,0.00052054,31]
[312675031,1706142701332,-826.78,0.00052054,120]
[312675032,1706142701341,-3450.92,0.00052054,31]
[312675033,1706142701351,-500.0,0.00052054,31]
[312675034,1706142701360,-500.0,0.00052054,31]
[312675035,1706142701370,-500.0,0.00052054,31]
[312675036,1706142701379,-366.37770431,0.00052054,31]
[312675037,1706142701388,-500.0,0.00052054,31]
[312675038,1706142701397,-500.0,0.00052054,31]
[312675039,1706142701406,-466.85634296,0.00052054,31]
[312675040,1706142701415,-549.31,0.00052054,31]
[312675041,1706142701425,-951.5,0.00052054,31]
[312675042,1706142701435,-500.0,0.00052054,31]
[312675043,1706142701444,-500.0,0.00052054,31]
[312675044,1706142701453,-506.14,0.00052054,31]
[312675045,1706142701462,-500.0,0.00052054,31]
[312675046,1706142701472,-500.0,0.00052054,31]
[312675047,1706142701481,-500.0,0.00052054,31]
[312675048,1706142701490,-500.0,0.00052054,31]
[312675049,1706142701500,-500.0,0.00052054,31]
[312675050,1706142701509,-500.0,0.00052054,31]
[312675051,1706142701519,-500.0,0.00052054,31]
[312675052,1706142701528,-500.0,0.00052054,31]
[312675053,1706142701539,-500.0,0.00052054,31]
[312675054,1706142701548,-500.0,0.00052054,31]
[312675055,1706142701557,-586.01,0.00052054,31]
[312675056,1706142701566,-610.51,0.00052054,2]
[312675057,1706142701576,-639.294858,0.00052054,31]
[312675058,1706142701585,-500.0,0.00052054,31]
[312675059,1706142701595,-1518.82,0.00052054,2]
[312675060,1706142701604,-787.32,0.00052054,31]
[312675061,1706142701613,-500.0,0.00052054,31]
[312675062,1706142701622,-500.0,0.00052054,31]
[312675063,1706142701632,-500.0,0.00052054,31]
[312675064,1706142701641,-696.9,0.00052054,31]
[312675065,1706142701650,-500.0,0.00052054,31]
[312675066,1706142701660,-500.0,0.00052054,120]
[312675067,1706142701669,-839.16,0.00052054,31]
[312675068,1706142701678,-949.05,0.00052054,31]
[312675069,1706142701687,-1090.8,0.00052054,7]
[312675070,1706142701697,-500.0,0.00052054,31]
[312675071,1706142701706,-500.0,0.00052054,31]
[312675072,1706142701716,-500.0,0.00052054,31]
[312675073,1706142701725,-500.0,0.00052054,31]
[312675074,1706142701735,-500.0,0.00052054,31]
[312675075,1706142701744,-500.0,0.00052054,31]
[312675076,1706142701754,-500.0,0.00052054,31]
[312675077,1706142701764,-475.80927978,0.00052054,31]
[312675078,1706142701773,-500.0,0.00052054,31]
[312675079,1706142701782,-500.0,0.00052054,31]
[312675080,1706142701792,-500.0,0.00052054,31]
[312675081,1706142701802,-500.0,0.00052054,31]
[312675082,1706142701814,-500.0,0.00052054,31]
[312675083,1706142701823,-500.0,0.00052054,31]
[312675084,1706142701834,-500.0,0.00052054,31]
[312675085,1706142701844,-500.0,0.00052054,31]
[312675086,1706142701854,-569.39,0.00052054,31]
[312675087,1706142701863,-500.0,0.00052054,31]
[312675088,1706142701873,-500.0,0.00052054,31]
[312675089,1706142701883,-500.0,0.00052054,31]
[312675090,1706142701893,-500.0,0.00052054,31]
[312675091,1706142701903,-500.0,0.00052054,31]
[312675092,1706142701912,-500.0,0.00052054,31]
[312675093,1706142701922,-500.0,0.00052054,31]
[312675094,1706142701931,-500.0,0.00052054,31]
[312675095,1706142701941,-500.0,0.00052054,31]
[312675096,1706142701951,-500.0,0.00052054,31]
[312675097,1706142701960,-500.0,0.00052054,31]
[312675098,1706142701969,-500.0,0.00052054,31]
[312675099,1706142701980,-1012.49,0.00052054,31]
[312675100,1706142701990,-500.0,0.00052054,31]
[312675101,1706142701999,-500.0,0.00052054,31]
[312675102,1706142702009,-493.93428459,0.00052054,31]
[312675103,1706142702019,-799.68,0.00052054,31]
[312675104,1706142702028,-500.0,0.00052054,31]
[312675105,1706142702037,-500.0,0.00052054,31]
[312675106,1706142702047,-500.0,0.00052054,31]
[312675107,1706142702056,-500.0,0.00052054,31]
[312675108,1706142702065,-500.0,0.00052054,31]
[312675109,1706142702075,-500.0,0.00052054,31]
[312675110,1706142702084,-356.11695481,0.00052054,31]
[312675111,1706142702093,-543.8,0.00052054,31]
[312675112,1706142702103,-500.0,0.00052054,31]
[312675113,1706142702112,-986.07,0.00052054,31]
[312675114,1706142702122,-547.97766184,0.00052054,31]
[312675115,1706142702131,-500.0,0.00052054,31]
[312675116,1706142702141,-339.6851618,0.00052054,31]
[312675117,1706142702150,-500.0,0.00052054,31]
[312675118,1706142702159,-500.0,0.00052054,31]
[312675119,1706142702168,-500.0,0.00052054,31]
[312675120,1706142702178,-500.0,0.00052054,31]
[312675121,1706142702187,-642.40357523,0.00052054,31]
[312675122,1706142702196,-500.0,0.00052054,31]
[312675123,1706142702205,-500.0,0.00052054,31]
[312675124,1706142702215,-1153.66,0.00052054,31]
[312675125,1706142702224,-516.65,0.00052054,31]
[312675126,1706142702234,-500.0,0.00052054,31]
[312675127,1706142702243,-500.0,0.00052054,31]
[312675128,1706142702252,-1241.77,0.00052054,31]
[312675129,1706142702262,-500.0,0.00052054,31]
[312675130,1706142702271,-500.0,0.00052054,31]
[312675131,1706142702281,-500.0,0.00052054,31]
[312675132,1706142702291,-500.0,0.00052054,31]
[312675133,1706142702301,-500.0,0.00052054,31]
[312675134,1706142702310,-500.0,0.00052054,31]
[312675135,1706142702319,-653.39,0.00052054,31]
[312675136,1706142702329,-500.0,0.00052054,31]
[312675137,1706142702338,-836.07,0.00052054,31]
[312675138,1706142702348,-756.21,0.00052054,31]
[312675139,1706142702358,-515.25,0.00052054,31]
[312675140,1706142702368,-1013.31,0.00052054,31]
[312675141,1706142702378,-500.0,0.00052054,31]
[312675142,1706142702387,-616.32,0.00052054,31]
[312675143,1706142702397,-528.69,0.00052054,31]
[312675144,1706142702406,-500.0,0.00052054,31]
[312675145,1706142702416,-500.0,0.00052054,31]
[312675146,1706142702425,-956.92,0.00052054,31]
[312675147,1706142702434,-500.0,0.00052054,31]
[312675148,1706142702443,-186.84,0.00052054,31]
[312675149,1706142702453,-500.0,0.00052054,31]
[312675150,1706142702462,-998.0,0.00052054,31]
[312675151,1706142702472,-500.0,0.00052054,31]
[312675152,1706142702481,-682.58,0.00052054,31]
[312675153,1706142702491,-500.0,0.00052054,31]
[312675154,1706142702500,-4855.5,0.00052054,31]
[312675155,1706142702510,-500.0,0.00052054,31]
[312675156,1706142702519,-500.0,0.00052054,31]
[312675157,1706142702529,-500.0,0.00052054,31]
[312675158,1706142702538,-2993.87,0.00052054,31]
[312675159,1706142702548,-500.0,0.00052054,31]
[312675160,1706142702557,-500.0,0.00052054,31]
[312675161,1706142702566,-5084.18,0.00052054,5]
[312675162,1706142702576,-1768.63,0.00052054,31]
[312675163,1706142702586,-900.81,0.00052054,31]
[312675164,1706142702596,-531.92,0.00052054,31]
[312675165,1706142702606,-1000.0,0.00052054,7]
[312675166,1706142702615,-500.0,0.00052054,31]
[312675167,1706142702625,-500.0,0.00052054,31]
[312675168,1706142702634,-801.09,0.00052054,31]
[312675169,1706142702644,-500.0,0.00052054,31]
[312675170,1706142702654,-500.0,0.00052054,31]
[312675171,1706142702664,-500.0,0.00052054,31]
[312675172,1706142702674,-524.49,0.00052054,31]
[312675173,1706142702683,-500.0,0.00052054,31]
[312675174,1706142702693,-500.0,0.00052054,31]
[312675175,1706142702703,-500.0,0.00052054,31]
[312675176,1706142702713,-544.16,0.00052054,31]
[312675177,1706142702723,-2294.01,0.00052054,31]
[312675178,1706142702733,-500.0,0.00052054,31]
[312675179,1706142702743,-500.0,0.00052054,31]
[312675180,1706142702753,-671.26,0.00052054,31]
[312675181,1706142702763,-500.0,0.00052054,31]
[312675182,1706142702773,-583.12,0.00052054,31]
[312675183,1706142702782,-830.43,0.00052054,31]
[312675184,1706142702792,-652.75,0.00052054,31]
[312675185,1706142702804,-556.8,0.00052054,31]
[312675186,1706142702814,-500.0,0.00052054,31]
[312675187,1706142702823,-545.42,0.00052054,31]
[312675188,1706142702834,-2589.2,0.00052054,31]
[312675189,1706142702844,-541.32,0.00052054,31]
[312675190,1706142702854,-500.0,0.00052054,31]
[312675191,1706142702863,-500.0,0.00052054,31]
[312675192,1706142702873,-545.58,0.00052054,31]
[312675193,1706142702884,-500.0,0.00052054,31]
[312675194,1706142702894,-586.96,0.00052054,31]
[312675195,1706142702903,-659.09,0.00052054,31]
[312675196,1706142702912,-2351.31,0.00052054,31]
[312675197,1706142702922,-1206.46,0.00052054,31]
[312675198,1706142702931,-583.57,0.00052054,31]
[312675199,1706142702940,-524.43,0.00052054,31]
[312675200,1706142702950,-608.39727698,0.00052054,31]
[312675201,1706142702959,-596.67,0.00052054,31]
[312675202,1706142702969,-966.39,0.00052054,31]
[312675203,1706142702977,-500.0,0.00052054,31]
[312675204,1706142702987,-612.43,0.00052054,31]
[312675205,1706142702997,-683.16,0.00052054,31]
[312675206,1706142703006,-500.0,0.00052054,31]
[312675207,1706142703016,-1407.74,0.00052054,31]
[312675208,1706142703025,-710.01,0.00052054,31]
[312675209,1706142703034,-500.0,0.00052054,31]
[312675210,1706142703043,-5543.02,0.00052054,31]
[312675211,1706142703052,-500.0,0.00052054,31]
[312675212,1706142703062,-500.0,0.00052054,31]
[312675213,1706142703071,-2066.55,0.00052054,31]
[312675214,1706142703081,-620.76,0.00052054,31]
[312675215,1706142703090,-150.0,0.00052054,120]
[312675216,1706142703100,-1016.7,0.00052054,31]
[312675217,1706142703109,-1226.31,0.00052054,31]
[312675218,1706142703118,-500.0,0.00052054,31]
[312675219,1706142703127,-563.82,0.00052054,31]
[312675220,1706142703139,-742.38,0.00052054,31]
[312675221,1706142703149,-552.79,0.00052054,31]
[312675222,1706142703159,-500.0,0.00052054,31]
[312675223,1706142703169,-547.01,0.00052054,31]
[312675224,1706142703178,-500.0,0.00052054,31]
[312675225,1706142703188,-3013.17,0.00052054,31]
[312675226,1706142703198,-514.66,0.00052054,31]
[312675227,1706142703207,-540.87,0.00052054,31]
[312675228,1706142703216,-712.54,0.00052054,31]
[312675229,1706142703226,-2280.94,0.00052054,31]
[312675230,1706142703235,-778.86,0.00052054,31]
[312675231,1706142703245,-950.67,0.00052054,31]
[312675232,1706142703255,-500.0,0.00052054,31]
[312675233,1706142703264,-500.0,0.00052054,31]
[312675234,1706142703274,-500.0,0.00052054,31]
[312675235,1706142703284,-500.0,0.00052054,31]
[312675236,1706142703293,-1663.46,0.00052054,31]
[312675237,1706142703302,-500.0,0.00052054,31]
[312675238,1706142703312,-649.21,0.00052054,31]
[312675239,1706142703321,-500.0,0.00052054,31]
[312675240,1706142703332,-1247.69,0.00052054,31]
[312675241,1706142703341,-787.85,0.00052054,31]
[312675242,1706142703351,-1073.61,0.00052054,31]
[312675243,1706142703360,-500.0,0.00052054,31]
[312675244,1706142703371,-500.0,0.00052054,31]
[312675245,1706142703380,-500.0,0.00052054,31]
[312675246,1706142703390,-1265.65,0.00052054,31]
[312675247,1706142703399,-618.27,0.00052054,31]
[312675248,1706142703409,-500.0,0.00052054,31]
[312675249,1706142703418,-500.0,0.00052054,31]
[312675250,1706142703428,-2426.6,0.00052054,31]
[312675251,1706142703437,-3061.04,0.00052054,31]
[312675252,1706142703446,-500.0,0.00052054,31]
[312675253,1706142703455,-1315.35,0.00052054,31]
[312675254,1706142703465,-700.1,0.00052054,31]
[312675255,1706142703474,-660.57,0.00052054,31]
[312675256,1706142703484,-706.67,0.00052054,31]
[312675257,1706142703493,-500.0,0.00052054,31]
[312675258,1706142703502,-500.0,0.00052054,31]
[312675259,1706142703512,-860.59,0.00052054,31]
[312675260,1706142703521,-733.61,0.00052054,31]
[312675261,1706142703531,-1000.0,0.00052054,7]
[312675262,1706142703539,-553.53,0.00052054,31]
[312675263,1706142703549,-501.79,0.00052054,31]
[312675264,1706142703558,-605.74,0.00052054,31]
[312675265,1706142703567,-500.0,0.00052054,31]
[312675266,1706142703577,-500.0,0.00052054,31]
[312675267,1706142703588,-564.19,0.00052054,31]
[312675268,1706142703598,-500.0,0.00052054,31]
[312675269,1706142703607,-740.74,0.00052054,31]
[312675270,1706142703616,-500.0,0.00052054,31]
[312675271,1706142703625,-1295.4,0.00052054,31]
[312675272,1706142703635,-519.74,0.00052054,31]
[312675273,1706142703645,-500.0,0.00052054,31]
[312675274,1706142703654,-626.67634815,0.00052054,31]
[312675275,1706142703663,-500.0,0.00052054,31]
[312675276,1706142703674,-649.59,0.00052054,31]
[312675277,1706142703683,-500.0,0.00052054,31]
[312675278,1706142703693,-537.1,0.00052054,31]
[312675279,1706142703703,-599.29,0.00052054,31]
[312675280,1706142703712,-765.11,0.00052054,31]
[312675281,1706142703722,-3710.41,0.00052054,31]
[312675282,1706142703731,-500.0,0.00052054,31]
[312675283,1706142703741,-500.0,0.00052054,31]
[312675284,1706142703750,-500.0,0.00052054,31]
[312675285,1706142703760,-1451.54,0.00052054,31]
[312675286,1706142703769,-500.0,0.00052054,31]
[312675287,1706142703779,-737.72,0.00052054,31]
[312675288,1706142703789,-658.3,0.00052054,31]
[312675289,1706142703800,-500.0,0.00052054,31]
[312675290,1706142703812,-500.0,0.00052054,31]
[312675291,1706142703821,-500.0,0.00052054,31]
[312675292,1706142703830,-748.16,0.00052054,31]
[312675293,1706142703840,-536.66,0.00052054,31]
[312675294,1706142703849,-500.0,0.00052054,31]
[312675295,1706142703859,-655.7,0.00052054,31]
[312675296,1706142703868,-937.73,0.00052054,2]
[312675297,1706142703878,-678.69,0.00052054,31]
[312675298,1706142703888,-500.0,0.00052054,31]
[312675299,1706142703898,-764.66,0.00052054,31]
[312675300,1706142703907,-500.0,0.00052054,31]
[312675301,1706142703916,-673.27,0.00052054,31]
[312675302,1706142703926,-820.44,0.00052054,31]
[312675303,1706142703935,-500.0,0.00052054,31]
[312675304,1706142703945,-797.85,0.00052054,31]
[312675305,1706142703954,-500.0,0.00052054,31]
[312675306,1706142703963,-500.0,0.00052054,31]
[312675307,1706142703972,-500.0,0.00052054,31]
[312675308,1706142703982,-618.86,0.00052054,31]
[312675309,1706142703991,-515.5,0.00052054,31]
[312675310,1706142704000,-500.0,0.00052054,31]
[312675311,1706142704010,-792.67,0.00052054,31]
[312675312,1706142704019,-717.84,0.00052054,31]
[312675313,1706142704029,-1129.79,0.00052054,31]
[312675314,1706142704038,-500.0,0.00052054,31]
[312675315,1706142704047,-500.0,0.00052054,31]
[312675316,1706142704057,-510.96,0.00052054,31]
[312675317,1706142704066,-600.26,0.00052054,31]
[312675318,1706142704077,-500.0,0.00052054,31]
[312675319,1706142704087,-689.9,0.00052054,31]
[312675320,1706142704097,-500.0,0.00052054,31]
[312675321,1706142704106,-594.93,0.00052054,2]
[312675322,1706142704116,-738.6,0.00052054,31]
[312675323,1706142704125,-724.18,0.00052054,31]
[312675324,1706142704134,-757.86,0.00052054,2]
[312675325,1706142704144,-1187.72,0.00052054,31]
[312675326,1706142704154,-754.82,0.00052054,31]
[312675327,1706142704164,-500.0,0.00052054,31]
[312675328,1706142704174,-500.0,0.00052054,31]
[312675329,1706142704185,-500.0,0.00052054,31]
[312675330,1706142704195,-1281.32,0.00052054,31]
[312675331,1706142704204,-2728.94,0.00052054,31]
[312675332,1706142704213,-557.24,0.00052054,31]
[312675333,1706142704222,-2400.0,0.00052055,30]
[312675334,1706142704231,-500.0,0.00052055,30]
[312675335,1706142704241,-150.0,0.00052062,7]
[312675336,1706142704252,-150.0,0.00052065,7]
[312675337,1706142704262,-1273.15306011,0.00052073,120]
[312675338,1706142704271,-150.0,0.00052078,7]
[312675339,1706142704280,-164.81285387,0.00052083,60]
[312675340,1706142704290,-1500.0,0.000521,2]
[312675341,1706142704299,-150.0,0.00052101,7]
[312675342,1706142704480,-16032.31355598,0.00052101,2]
[312675343,1706142704490,-150.0,0.00052104,7]
[312675344,1706142704501,-1414.43386236,0.00052111,60]
[312675345,1706142704510,-150.0,0.00052128,7]
[312675346,1706142704519,-150.0,0.00052156,7]
[312675347,1706142704529,-150.0,0.00052158,7]
[312675348,1706142704538,-150.0,0.00052159,7]
[312675349,1706142704547,-374.74972718,0.00052162,60]
[312675350,1706142704556,-150.0,0.00052175,7]
[312675351,1706142704566,-150.0,0.00052193,7]
[312675352,1706142704576,-40000.0,0.000522,120]
[312675353,1706142704588,-40000.0,0.000522,120]
[312675354,1706142704597,-40000.0,0.000522,120]
[312675355,1706142704607,-40000.0,0.000522,120]
[312675356,1706142704617,-164.81285387,0.00052201,60]
[312675357,1706142704627,-150.0,0.00052217,7]
[312675358,1706142704636,-1414.43386236,0.00052217,60]
[312675359,1706142704646,-150.37716717,0.00052223,60]
[312675360,1706142704656,-150.0,0.00052226,7]
[312675361,1706142704666,-182.1248519,0.00052228,2]
[312675362,1706142704676,-1749.66437605,0.00052228,2]
[312675363,1706142704685,-174.00895376,0.00052255,60]
[312675364,1706142704695,-155.25098285,0.00052255,60]
[312675365,1706142704704,-150.0,0.0005227,7]
[312675366,1706142704714,-150.0,0.00052274,7]
[312675367,1706142704724,-1414.43386236,0.00052279,60]
[312675368,1706142704734,-150.0,0.00052287,7]
[312675369,1706142704744,-150.0,0.00052292,7]
[312675370,1706142704753,-1336.3324939,0.00052292,2]
[312675371,1706142704762,-150.0,0.00052318,7]
[312675372,1706142704773,-2205.37187775,0.00052325,2]
[312675373,1706142704782,-1774.21,0.00052328,5]
[312675374,1706142704791,-190.33148736,0.00052328,31]
[312675375,1706142704802,-595.87,0.00052328,31]
[312675376,1706142704814,-500.0,0.00052328,31]
[312675377,1706142704824,-500.0,0.00052328,31]
[312675378,1706142704834,-545.8,0.00052328,31]
[312675379,1706142704843,-500.0,0.00052328,31]
[312675380,1706142704853,-500.0,0.00052328,31]
[312675381,1706142704862,-500.0,0.00052328,31]
[312675382,1706142704871,-500.0,0.00052328,31]
[312675383,1706142704882,-500.0,0.00052328,31]
[312675384,1706142704891,-500.0,0.00052328,31]
[312675385,1706142704901,-500.0,0.00052328,31]
[312675386,1706142704910,-500.0,0.00052328,31]
[312675387,1706142704919,-500.0,0.00052328,31]
[312675388,1706142704929,-625.63559043,0.00052328,31]
[312675389,1706142704938,-390.99805914,0.00052328,31]
[312675390,1706142704948,-319.3155422,0.00052328,31]
[312675391,1706142704957,-500.0,0.00052328,31]
[312675392,1706142704966,-500.0,0.00052328,31]
[312675393,1706142704976,-500.0,0.00052328,31]
[312675394,1706142704985,-500.0,0.00052328,31]
[312675395,1706142704994,-500.0,0.00052328,31]
[312675396,1706142705004,-500.0,0.00052328,31]
[312675397,1706142705013,-500.0,0.00052328,31]
[312675398,1706142705022,-500.0,0.00052328,20]
[312675399,1706142705031,-500.0,0.00052328,31]
[312675400,1706142705041,-500.0,0.00052328,31]
[312675401,1706142705050,-500.0,0.00052328,14]
[312675402,1706142705059,-500.0,0.00052328,31]
[312675403,1706142705069,-500.0,0.00052328,31]
[312675404,1706142705078,-500.0,0.00052328,31]
[312675405,1706142705090,-500.0,0.00052328,31]
[312675406,1706142705099,-1202.05,0.00052328,31]
[312675407,1706142705107,-546.04,0.00052328,31]
[312675408,1706142705117,-500.0,0.00052328,31]
[312675409,1706142705127,-500.0,0.00052328,31]
[312675410,1706142705137,-689.23,0.00052328,2]
[312675411,1706142705146,-839.27,0.00052328,2]
[312675412,1706142705156,-354.31499013,0.00052328,31]
[312675413,1706142705165,-500.0,0.00052328,31]
[312675414,1706142705174,-1213.27,0.00052328,31]
[312675415,1706142705184,-423.61277349,0.00052328,31]
[312675416,1706142705193,-689.7,0.00052328,31]
[312675417,1706142705202,-500.0,0.00052328,31]
[312675418,1706142705212,-688.21,0.00052328,31]
[312675419,1706142705221,-440.0,0.00052328,2]
[312675420,1706142705230,-527.15,0.00052328,31]
[312675421,1706142705240,-500.82747676,0.00052328,2]
[312675422,1706142705249,-567.82511916,0.00052328,31]
[312675423,1706142705258,-556.3,0.00052328,31]
[312675424,1706142705268,-976.84,0.00052328,7]
[312675425,1706142705277,-500.0,0.00052328,31]
[312675426,1706142705287,-565.89,0.00052328,31]
[312675427,1706142705296,-500.0,0.00052328,31]
[312675428,1706142705306,-500.0,0.00052328,31]
[312675429,1706142705316,-500.0,0.00052328,31]
[312675430,1706142705326,-500.0,0.00052328,31]
[312675431,1706142705338,-483.14549846,0.00052328,31]
[312675432,1706142705348,-500.0,0.00052328,31]
[312675433,1706142705357,-500.0,0.00052328,31]
[312675434,1706142705366,-500.0,0.00052328,31]
[312675435,1706142705375,-500.0,0.00052328,31]
[312675436,1706142705383,-500.0,0.00052328,31]
[312675437,1706142705391,-308.59368441,0.00052328,31]
[312675438,1706142705398,-500.0,0.00052328,31]
[312675439,1706142705405,-500.0,0.00052328,31]
[312675440,1706142705413,-500.0,0.00052328,31]
[312675441,1706142705421,-781.79,0.00052328,31]
[312675442,1706142705428,-500.0,0.00052328,31]
[312675443,1706142705436,-500.0,0.00052328,31]
[312675444,1706142705443,-500.0,0.00052328,31]
[312675445,1706142705452,-500.0,0.00052328,31]
[312675446,1706142705461,-1179.82,0.00052328,31]
[312675447,1706142705470,-3431.79,0.00052328,15]
[312675448,1706142705479,-500.0,0.00052328,31]
[312675449,1706142705489,-568.5,0.00052328,31]
[312675450,1706142705498,-500.0,0.00052328,31]
[312675451,1706142705507,-500.0,0.00052328,31]
[312675452,1706142705516,-1640.43,0.00052328,31]
[312675453,1706142705525,-500.0,0.00052328,31]
[312675454,1706142705535,-500.0,0.00052328,31]
[312675455,1706142705544,-500.0,0.00052328,31]
[312675456,1706142705552,-599.18,0.00052328,31]
[312675457,1706142705561,-500.0,0.00052328,31]
[312675458,1706142705571,-826.78,0.00052328,120]
[312675459,1706142705580,-3450.92,0.00052328,31]
[312675460,1706142705592,-500.0,0.00052328,31]
[312675461,1706142705601,-500.0,0.00052328,31]
[312675462,1706142705611,-500.0,0.00052328,31]
[312675463,1706142705621,-500.0,0.00052328,31]
[312675464,1706142705630,-500.0,0.00052328,31]
[312675465,1706142705639,-549.31,0.00052328,31]
[312675466,1706142705649,-951.5,0.00052328,31]
[312675467,1706142705659,-500.0,0.00052328,31]
[312675468,1706142705668,-500.0,0.00052328,31]
[312675469,1706142705678,-506.14,0.00052328,31]
[312675470,1706142705687,-457.18267484,0.00052328,31]
[312675471,1706142705698,-500.0,0.00052328,31]
[312675472,1706142705707,-500.0,0.00052328,31]
[312675473,1706142705716,-500.0,0.00052328,31]
[312675474,1706142705726,-500.0,0.00052328,31]
[312675475,1706142705735,-500.0,0.00052328,31]
[312675476,1706142705745,-500.0,0.00052328,31]
[312675477,1706142705754,-500.0,0.00052328,31]
[312675478,1706142705764,-500.0,0.00052328,31]
[312675479,1706142705774,-500.0,0.00052328,31]
[312675480,1706142705783,-586.01,0.00052328,31]
[312675481,1706142705793,-610.51,0.00052328,2]
[312675482,1706142705802,-254.52543547,0.00052328,31]
[312675483,1706142705813,-1518.82,0.00052328,2]
[312675484,1706142705823,-787.32,0.00052328,31]
[312675485,1706142705834,-500.0,0.00052328,31]
[312675486,1706142705843,-500.0,0.00052328,31]
[312675487,1706142705853,-500.0,0.00052328,31]
[312675488,1706142705862,-696.9,0.00052328,31]
[312675489,1706142705872,-500.0,0.00052328,31]
[312675490,1706142705882,-500.0,0.00052328,120]
[312675491,1706142705893,-839.16,0.00052328,31]
[312675492,1706142705902,-949.05,0.00052328,31]
[312675493,1706142705911,-1090.8,0.00052328,7]
[312675494,1706142705920,-500.0,0.00052328,31]
[312675495,1706142705929,-500.0,0.00052328,31]
[312675496,1706142705939,-500.0,0.00052328,31]
[312675497,1706142705948,-500.0,0.00052328,31]
[312675498,1706142705957,-500.0,0.00052328,31]
[312675499,1706142705966,-500.0,0.00052328,31]
[312675500,1706142705976,-500.0,0.00052328,31]
[312675501,1706142705985,-500.0,0.00052328,31]
[312675502,1706142705994,-500.0,0.00052328,31]
[312675503,1706142706003,-500.0,0.00052328,31]
[312675504,1706142706013,-500.0,0.00052328,31]
[312675505,1706142706022,-500.0,0.00052328,31]
[312675506,1706142706031,-500.0,0.00052328,31]
[312675507,1706142706040,-500.0,0.00052328,31]
[312675508,1706142706050,-500.0,0.00052328,31]
[312675509,1706142706059,-569.39,0.00052328,31]
[312675510,1706142706069,-500.0,0.00052328,31]
[312675511,1706142706078,-649.561538,0.00052328,31]
[312675512,1706142706089,-500.0,0.00052328,31]
[312675513,1706142706099,-500.0,0.00052328,31]
[312675514,1706142706108,-500.0,0.00052328,31]
[312675515,1706142706118,-485.51438699,0.00052328,31]
[312675516,1706142706131,-500.0,0.00052328,31]
[312675517,1706142706140,-500.0,0.00052328,31]
[312675518,1706142706150,-500.0,0.00052328,31]